bitfinex-derivatives/quotes_ETHF0:USTF0_20250403
["timestamp","ask_amount","ask_price","bid_price","bid_amount"]
[1743711453896,1.11985,1786.8,1786.7,7.73386043]
[1743711454089,1.11985,1786.8,1786.7,8.85377043]
[1743711454704,1.11956,1787.3,1787.2,1.11954]
[1743711454887,1.5285,1787.3,1787.2,1.11954]
[1743711455289,1.5285,1787.3,1787.2,46.56074]
[1743711455790,1.5285,1787.3,1787.2,47.28380043]
[1743711456393,0.7358,1787.5,1787.4,1.11948]
[1743711456695,3.35981,1787.5,1787.4,4.92148]
[1743711456894,2.2404,1787.5,1787.4,4.92148]
[1743711457284,2.62401,1787.5,1787.4,4.92148]
[1743711457491,1.81141,1787.7,1787.6,1.11935]
[1743711457892,1.11935,1787.6,1787.5,2.55277]
[1743711458087,2.62395,1787.6,1787.5,2.55277]
[1743711458296,1.11941,1787.5,1787.4,7.0098]
[1743711458491,2.60701,1787.5,1787.4,7.0098]
[1743711458796,1.11954,1787.3,1787.2,4.92057]
[1743711459096,1.11954,1787.3,1787.2,8.12837]
[1743711459487,3.36644,1787.3,1787.2,8.12837]
[1743711462995,2.2469,1787.3,1787.2,8.12837]
[1743711463498,2.2469,1787.3,1787.2,9.64767]
[1743711464702,1.11939,1787.6,1787.5,1.11933]
[1743711464903,2.56579,1787.6,1787.5,8.12613]
[1743711465203,2.56579,1787.6,1787.5,9.53493]
[1743711473203,2.56579,1787.6,1787.5,3.2078]
[1743711473408,2.56579,1787.6,1787.5,7.0058]
[1743711474510,2.56579,1787.6,1787.5,3.2078]
[1743711478208,1.11948,1787.4,1787.3,3.798]
[1743711478420,1.11954,1787.3,1787.2,3.2078]
[1743711478716,3.23884,1787.3,1787.2,3.2078]
[1743711479309,2.1193,1787.3,1787.2,4.3274]
[1743711479711,3.23884,1787.3,1787.2,4.3274]
[1743711479913,3.23884,1787.3,1787.2,3.92706641]
[1743711480214,3.23884,1787.3,1787.2,4.3274]
[1743711480410,3.23884,1787.3,1787.2,3.2078]
[1743711481012,3.23884,1787.3,1787.2,4.3274]
[1743711481410,3.23884,1787.3,1787.2,5.7892]
[1743711482012,3.23884,1787.3,1787.2,6.50934073]
[1743711482617,3.23884,1787.3,1787.2,7.06488847]
[1743711482914,2.1193,1787.3,1787.2,7.06488847]
[1743711483119,1.11946,1787.5,1787.4,1.11942]
[1743711483314,1.11946,1787.5,1787.4,8.67976774]
[1743711483514,1.11946,1787.5,1787.4,10.90540847]
[1743711483912,1.11946,1787.5,1787.4,11.39631274]
[1743711484218,1.11946,1787.5,1787.4,5.07268847]
[1743711484415,2.53976,1787.5,1787.4,5.07268847]
[1743711484618,2.53976,1787.5,1787.4,0.72014073]
[1743711485325,1.11954,1787.3,1787.2,3.2078]
[1743711485618,1.11954,1787.3,1787.2,4.48680118]
[1743711486119,2.56564,1787.3,1787.2,4.48680118]
[1743711488915,2.56564,1787.3,1787.2,5.60640118]
[1743711489214,2.56564,1787.3,1787.2,0.72212823]
[1743711489618,2.56564,1787.3,1787.1,0.00840831]
[1743711489619,1.1196,1787.2,1787.1,0.00840831]
[1743711489820,3.2546,1787.2,1787.1,0.00840831]
[1743711490812,3.2546,1787.2,1787.1,1.12806831]
[1743711491018,3.2546,1787.2,1787.1,0.00840831]
[1743711494822,5.7546,1787.2,1787.1,0.00840831]
[1743711499021,3.2546,1787.2,1787.1,0.00840831]
[1743711499727,5.7546,1787.2,1787.1,0.00840831]
[1743711500227,5.85246342,1787.2,1787.1,0.00840831]
[1743711501326,3.2546,1787.2,1787.1,0.00840831]
[1743711501534,2.79839,1787.6,1787.1,2.50840831]
[1743711501727,1.1195,1787.4,1787.3,1.11952]
[1743711501923,1.11952,1787.4,1787.2,0.745]
[1743711502119,1.11952,1787.4,1787.3,40.8]
[1743711505432,1.1196,1787.2,1787.1,3.21620831]
[1743711505838,1.1196,1787.2,1787.1,4.4947281]
[1743711506133,2.5199,1787.2,1787.1,5.6143881]
[1743711506527,1.4003,1787.2,1787.1,5.6143881]
[1743711506728,2.5199,1787.2,1787.1,5.6143881]
[1743711507133,2.5199,1787.2,1787.1,4.4947281]
[1743711507638,2.5199,1787.2,1787.1,5.6143881]
[1743711508234,2.5199,1787.2,1787.1,4.4947281]
[1743711509030,2.5199,1787.2,1787.1,5.6143881]
[1743711510928,2.5199,1787.2,1787.1,5.05760327]
[1743711511135,2.5199,1787.2,1787.1,2.40656611]
[1743711511441,1.1196,1787.2,1787.1,5.61436611]
[1743711511736,0.7452,1787.3,1787.2,1.11956]
[1743711511737,1.1196,1787.3,1787.2,1.11956]
[1743711511939,1.1196,1787.3,1787.2,1.84129496]
[1743711512139,1.1196,1787.3,1787.2,2.39803761]
[1743711512541,1.1196,1787.3,1787.2,1.27847761]
[1743711512742,1.1196,1787.3,1787.2,0.72173496]
[1743711512944,1.8079,1787.3,1787.2,0.72173496]
[1743711513451,2.4966,1787.3,1787.2,0.72173496]
[1743711515338,5.7044,1787.3,1787.2,0.72173496]
[1743711515537,2.4966,1787.3,1787.2,0.72173496]
[1743711515748,1.1196,1787.2,1787.1,0.00840831]
[1743711515954,2.5428,1787.2,1787.1,0.00840831]
[1743711516155,2.5428,1787.2,1787.1,1.28920258]
[1743711516354,2.5428,1787.2,1787.1,0.73146267]
[1743711520351,2.5428,1787.2,1787.1,1.28934719]
[1743711520544,1.1196,1787.2,1787.1,2.40900719]
[1743711520749,1.1195,1787.4,1787.3,1.11951]
[1743711520949,1.11947,1787.5,1787.4,1.11945]
[1743711521147,1.11947,1787.5,1787.4,3.38455]
[1743711521353,1.11947,1787.5,1787.4,3.94223821]
[1743711521756,1.11947,1787.5,1787.4,4.66494214]
[1743711522249,1.1194,1787.6,1787.5,1.11935]
[1743711522556,1.1194,1787.6,1787.5,10.11975779]
[1743711522855,1.1194,1787.6,1787.5,10.84246172]
[1743711523251,1.1194,1787.6,1787.5,7.63466172]
[1743711523449,1.1194,1787.6,1787.5,10.84246172]
[1743711526153,1.1194,1787.6,1787.5,9.16590393]
[1743711526853,1.1194,1787.6,1787.5,10.28531393]
[1743711527061,1.1194,1787.6,1787.5,9.16590393]
[1743711527561,1.8184,1787.6,1787.5,10.28531393]
[1743711528860,1.1194,1787.6,1787.5,10.28531393]
[1743711530461,1.1194,1787.6,1787.5,10.84218529]
[1743711530660,1.1194,1787.6,1787.5,10.28531393]
[1743711531954,1.1194,1787.6,1787.5,10.84235628]
[1743711532155,1.1194,1787.6,1787.5,10.28531393]
[1743711532765,1.8727,1787.6,1787.5,10.28531393]
[1743711534053,1.8727,1787.6,1787.5,9.16590393]
[1743711534258,7.5805,1787.6,1787.5,0.72270393]
[1743711534456,7.5805,1787.6,1787.5,3.93e-06]
[1743711534662,1.1196,1787.2,1787.1,0.00840831]
[1743711535662,1.8728,1787.2,1787.1,0.00840831]
[1743711537859,2.6011,1787.2,1787.1,0.00840831]
[1743711540275,5.1011,1787.2,1787.1,0.00840831]
[1743711540570,8.3089,1787.2,1787.1,0.00840831]
[1743711541072,8.40680148,1787.2,1787.1,0.00840831]
[1743711541270,8.40680242,1787.2,1787.1,0.00840831]
[1743711542567,8.40680056,1787.2,1787.1,0.00840831]
[1743711542868,5.19900056,1787.2,1787.1,0.00840831]
[1743711543464,8.40680056,1787.2,1787.1,0.00840831]
[1743711544068,8.40680103,1787.2,1787.1,0.00840831]
[1743711546776,8.40680076,1787.2,1787.1,0.00840831]
[1743711547274,8.40680095,1787.2,1787.1,0.00840831]
[1743711552074,5.90680095,1787.2,1787.1,0.00840831]
[1743711552275,12.19880095,1787.2,1787.1,8.31e-06]
[1743711552473,1.12004,1786.5,1786.4,1.5032]
[1743711552778,1.12004,1786.5,1786.1,2.80069]
[1743711552779,1.12017,1786.3,1786.2,0.7125]
[1743711552982,1.12017,1786.3,1786.2,2.1648]
[1743711553370,1.12017,1786.3,1786.2,42.9648]
[1743711554080,1.12017,1786.3,1786.2,44.08503]
[1743711554579,1.12014,1786.4,1786.3,1.12017]
[1743711554774,1.12014,1786.4,1786.3,4.6601]
[1743711554979,1.12014,1786.4,1786.3,1.4523]
[1743711559781,1.12014,1786.4,1786.3,4.6601]
[1743711559973,1.12014,1786.4,1786.3,5.78027]
[1743711560775,3.2078,1786.8,1786.3,13.75238]
[1743711560776,6.00746,1786.8,1786.3,13.75238]
[1743711560972,1.11996,1786.7,1786.6,1.11994]
[1743711561180,1.11996,1786.7,1786.6,8.11974]
[1743711561381,1.11996,1786.7,1786.6,47.7998]
[1743711561581,1.11996,1786.7,1786.6,49.2928]
[1743711562085,1.11996,1786.7,1786.6,50.41278]
[1743711562478,1.11996,1786.7,1786.6,49.2928]
[1743711563085,1.11996,1786.7,1786.6,50.41278]
[1743711564582,1.11996,1786.7,1786.6,51.12915752]
[1743711566982,1.11996,1786.7,1786.6,10.32915752]
[1743711567682,1.11996,1786.7,1786.6,7.12135752]
[1743711568084,1.11996,1786.7,1786.6,10.32915752]
[1743711568283,1.11996,1786.7,1786.6,9.20917752]
[1743711568591,1.11996,1786.7,1786.6,7.12135752]
[1743711568790,1.11996,1786.7,1786.6,10.32915752]
[1743711571180,1.11996,1786.7,1786.6,7.12135752]
[1743711571587,1.11996,1786.7,1786.6,7.85455752]
[1743711573082,1.11996,1786.7,1786.6,11.06235752]
[1743711574784,1.11996,1786.7,1786.6,11.61961078]
[1743711576381,1.11996,1786.7,1786.6,11.06235752]
[1743711576980,1.11996,1786.7,1786.6,11.61967652]
[1743711577490,1.11996,1786.7,1786.6,11.61977878]
[1743711577790,2.56876,1786.7,1786.6,11.06235752]
[1743711577992,2.56876,1786.7,1786.6,11.61980654]
[1743711579191,2.56876,1786.7,1786.6,10.88660654]
[1743711579889,2.56876,1786.7,1786.6,10.88665086]
[1743711581792,2.56876,1786.7,1786.6,10.88662148]
[1743711585697,2.56876,1786.7,1786.6,10.88696729]
[1743711586695,2.56876,1786.7,1786.6,1.27418729]
[1743711586895,2.56876,1786.7,1786.6,1.27433362]
[1743711587097,2.56876,1786.7,1786.6,0.71637752]
[1743711588092,5.06876,1786.7,1786.6,0.71637752]
[1743711588297,5.16668873,1786.7,1786.6,0.71637752]
[1743711588491,1.12004,1786.5,1786.4,40.8]
[1743711588891,1.12004,1786.5,1786.4,41.5182602]
[1743711589091,2.60394,1786.5,1786.4,41.5182602]
[1743711591503,2.60394,1786.5,1786.4,40.8]
[1743711593005,4.00604,1786.5,1786.4,40.8]
[1743711593497,1.12017,1786.3,1786.2,3.2078]
[1743711593693,1.12017,1786.3,1786.2,3.76556833]
[1743711593897,1.12017,1786.3,1786.2,45.28315565]
[1743711594099,1.12017,1786.3,1786.2,44.72538732]
[1743711598309,1.12017,1786.3,1786.2,45.84561732]
[1743711598703,1.12017,1786.3,1786.2,44.72538732]
[1743711599112,1.12017,1786.3,1786.2,44.0078]
[1743711600508,1.12017,1786.3,1786.2,46.1390616]
[1743711601717,1.12017,1786.3,1786.2,44.7251616]
[1743711602013,1.12017,1786.3,1786.2,44.0078]
[1743711604213,2.54287,1786.3,1786.2,44.0078]
[1743711605216,2.80027,1786.4,1786.2,44.0078]
[1743711605217,1.12016,1786.4,1786.2,44.0078]
[1743711605418,1.12016,1786.4,1786.3,1.12014]
[1743711605714,1.12016,1786.4,1786.3,1.4924]
[1743711606218,2.60346,1786.4,1786.3,1.4924]
[1743711609221,2.60346,1786.4,1786.3,42.2924]
[1743711610115,1.12023,1786.2,1786.1,3.79540831]
[1743711610313,1.12023,1786.2,1786.1,4.51270149]
[1743711610513,9.04253,1786.2,1786.1,0.72570149]
[1743711610721,9.75623,1786.2,1786.1,0.72570149]
[1743711611323,9.75623,1786.2,1786.1,0.00840831]
[1743711614313,7.25623,1786.2,1786.1,0.00840831]
[1743711614519,4.04843,1786.2,1786.1,0.00840831]
[1743711622528,1.12023,1786.2,1786.1,1.12869831]
[1743711622727,1.12861831,1786.3,1786.2,1.12023]
[1743711622925,1.12861831,1786.3,1786.2,5.63823]
[1743711623427,1.12861831,1786.3,1786.2,6.7164149]
[1743711626635,1.12861831,1786.3,1786.2,9.9242149]
[1743711627031,1.12861831,1786.3,1786.2,6.7164149]
[1743711627228,4.33641831,1786.3,1786.2,0.7176149]
[1743711627640,1.12023,1786.2,1786.1,3.79440831]
[1743711627838,2.62783,1786.2,1786.1,3.79440831]
[1743711628236,2.62783,1786.2,1786.1,5.17250831]
[1743711628437,2.62783,1786.2,1786.1,5.89033893]
[1743711630138,2.62783,1786.2,1786.1,5.17250831]
[1743711630833,2.62783,1786.2,1786.1,6.29279831]
[1743711631037,1.12862831,1786.3,1786.2,1.12023]
[1743711631338,1.12862831,1786.3,1786.2,3.99963]
[1743711631539,1.12862831,1786.3,1786.2,4.71755774]
[1743711632234,1.12862831,1786.3,1786.2,5.2755332]
[1743711633933,6.69815,1786.7,1786.5,1.12]
[1743711634230,1.12004,1786.5,1786.4,4.90505]
[1743711634443,1.12004,1786.5,1786.4,6.85954374]
[1743711634833,1.12004,1786.5,1786.4,7.57702838]
[1743711635642,1.11989,1786.8,1786.7,1.11985]
[1743711635936,1.11983,1786.9,1786.8,1.1198]
[1743711636135,1.11983,1786.9,1786.8,7.81265604]
[1743711636337,1.11983,1786.9,1786.8,7.97268464]
[1743711637042,1.11983,1786.9,1786.8,48.77268464]
[1743711638936,1.11983,1786.9,1786.8,48.0552]
[1743711639637,1.11983,1786.9,1786.8,7.2552]
[1743711651652,1.11983,1786.9,1786.8,6.5445]
[1743711652351,2.60973,1786.9,1786.8,6.5445]
[1743711653345,2.60973,1786.9,1786.8,7.25976676]
[1743711653857,1.4899,1786.9,1786.8,7.25976676]
[1743711654158,1.1196,1787.3,1787.0,2.79932]
[1743711654350,3.98921,1787.4,1787.3,1.11954]
[1743711654551,1.3989,1787.4,1787.3,2.51154]
[1743711654757,1.11945,1787.5,1787.4,1.11948]
[1743711654958,1.3989,1787.5,1787.4,6.29248]
[1743711655256,1.3989,1787.5,1787.4,9.50028]
[1743711655554,2.59019,1787.6,1787.5,1.11941]
[1743711655751,2.59019,1787.6,1787.5,2.51141]
[1743711656145,1.11927,1787.8,1787.7,1.11924]
[1743711656446,1.11927,1787.8,1787.7,4.90024]
[1743711656953,1.11927,1787.8,1787.7,6.30214]
[1743711657159,1.11927,1787.8,1787.7,4.90024]
[1743711658558,1.11927,1787.8,1787.7,3.781]
[1743711659667,1.11929,1787.7,1787.6,3.78]
[1743711659960,2.51019,1787.7,1787.6,3.78]
[1743711660658,2.51019,1787.7,1787.4,6.9878]
[1743711660659,1.11941,1787.5,1787.4,6.9878]
[1743711661253,2.51031,1787.5,1787.4,6.9878]
[1743711661655,2.51031,1787.5,1787.4,8.10728]
[1743711661859,2.51031,1787.5,1787.4,6.9878]
[1743711662060,2.51031,1787.5,1787.4,8.10728]
[1743711663157,2.51031,1787.5,1787.4,6.9878]
[1743711665064,1.11954,1787.3,1787.2,0.00840831]
[1743711665765,1.81844,1787.3,1787.2,0.00840831]
[1743711669874,1.11979,1786.9,1786.8,3.2078]
[1743711670062,4.96745,1787.2,1786.8,6.9868]
[1743711670263,1.11974,1787.0,1786.9,2.52995]
[1743711670459,1.428,1787.1,1787.0,1.11973]
[1743711670460,2.5477,1787.1,1787.0,1.11973]
[1743711670758,2.5477,1787.1,1787.0,4.32753]
[1743711671165,0.6989,1787.3,1787.2,1.1196]
[1743711671466,1.11954,1787.3,1787.2,8.1064]
[1743711671659,1.11954,1787.3,1787.2,8.82241633]
[1743711673067,1.11954,1787.3,1787.2,9.37888451]
[1743711674063,0.00840831,1787.4,1787.3,1.11954]
[1743711674366,1.11941,1787.6,1787.5,1.11941]
[1743711674567,1.11941,1787.6,1787.5,4.89841]
[1743711674972,1.11941,1787.6,1787.5,6.27701]
[1743711675163,1.11941,1787.6,1787.5,6.99302633]
[1743711675567,1.11941,1787.6,1787.5,6.27701]
[1743711676563,1.11941,1787.6,1787.5,3.779]
[1743711676759,2.53951,1787.6,1787.5,3.779]
[1743711677567,1.11954,1787.3,1787.2,5.70595]
[1743711677769,1.11954,1787.3,1787.2,9.48395]
[1743711678171,1.11954,1787.3,1787.2,10.19994782]
[1743711678477,2.54624,1787.3,1787.2,8.82134782]
[1743711678873,2.54624,1787.3,1787.2,8.1054]
[1743711679175,2.54624,1787.3,1787.2,6.9858]
[1743711679376,2.54624,1787.3,1787.2,8.1054]
[1743711680074,2.54624,1787.3,1787.2,9.5627]
[1743711680565,2.54624,1787.3,1787.2,10.2790159]
[1743711681677,2.79839,1787.6,1787.2,12.51534172]
[1743711681879,1.11948,1787.5,1787.4,1.11943]
[1743711682071,1.8747,1787.6,1787.5,1.11941]
[1743711682271,2.52774,1787.7,1787.6,1.11935]
[1743711682879,2.52774,1787.7,1787.6,2.58065]
[1743711683779,1.11935,1787.6,1787.5,5.59478]
[1743711683983,2.50405,1787.6,1787.5,6.31154284]
[1743711684276,2.50405,1787.6,1787.5,6.86865391]
[1743711684483,2.50405,1787.6,1787.5,8.34333226]
[1743711684676,2.50405,1787.6,1787.5,8.34333]
[1743711684872,2.50405,1787.6,1787.5,8.34333237]
[1743711687371,2.50405,1787.6,1787.5,8.3433329]
[1743711690885,1.11933,1787.7,1787.6,1.11929]
[1743711691071,3.22968,1787.8,1787.7,1.11929]
[1743711691275,2.53878,1787.8,1787.7,1.11929]
[1743711691476,3.50911,1788.1,1787.8,1.11923]
[1743711691779,1.11915,1788.0,1787.9,2.5958]
[1743711691981,1.11915,1788.0,1787.9,44.1476]
[1743711692181,1.11915,1788.0,1787.9,44.70454058]
[1743711692481,1.11915,1788.0,1787.9,45.42103698]
[1743711692681,1.11915,1788.0,1787.9,44.86436284]
[1743711692874,1.11915,1788.0,1787.9,45.42103402]
[1743711693274,2.53859,1788.1,1788.0,1.1191]
[1743711693575,2.53859,1788.1,1788.0,5.7455]
[1743711693976,2.53859,1788.1,1788.0,6.46226284]
[1743711694883,1.4195,1788.1,1788.0,6.46226284]
[1743711695074,0.7527,1788.2,1788.1,1.11904]
[1743711695274,1.4138,1788.3,1788.2,1.11898]
[1743711695582,1.8304,1788.4,1788.3,1.11891]
[1743711695976,1.8304,1788.4,1788.3,1.4186]
[1743711696176,3.2442,1788.4,1788.3,1.4186]
[1743711696482,3.2442,1788.4,1788.1,4.5375]
[1743711696483,1.11898,1788.2,1788.1,5.65651]
[1743711696683,1.11898,1788.2,1788.1,7.10881]
[1743711696885,1.11898,1788.2,1788.1,7.82383766]
[1743711700981,2.63157,1788.3,1788.2,1.11898]
[1743711701385,2.63157,1788.3,1788.1,0.71502766]
[1743711701386,1.11898,1788.2,1788.1,0.71502766]
[1743711701588,2.60418,1788.2,1788.1,4.49002766]
[1743711701789,2.60418,1788.2,1788.1,3.775]
[1743711702491,2.60418,1788.2,1788.1,4.89404]
[1743711703077,2.60418,1788.2,1788.1,3.775]
[1743711703284,2.60418,1788.2,1788.1,4.89404]
[1743711703482,2.60418,1788.2,1788.1,3.775]
[1743711703682,2.60418,1788.2,1788.1,4.89404]
[1743711704281,1.83039,1788.4,1788.3,1.11891]
[1743711704482,1.11889,1788.4,1788.3,1.11891]
[1743711704686,1.11889,1788.4,1788.2,3.961]
[1743711704687,2.56989,1788.5,1788.4,1.11885]
[1743711704987,2.56989,1788.5,1788.4,45.69285]
[1743711707292,2.56989,1788.5,1788.4,48.90065]
[1743711709196,2.56989,1788.5,1788.4,8.10065]
[1743711709391,1.4511,1788.5,1788.4,8.10065]
[1743711709588,2.56989,1788.5,1788.4,8.10065]
[1743711709789,1.11879,1788.5,1788.4,8.10065]
[1743711710091,2.57441,1788.7,1788.6,1.11872]
[1743711710290,1.11865,1788.8,1788.7,1.1186]
[1743711710592,2.57435,1788.8,1788.7,47.093]
[1743711710988,1.4557,1788.8,1788.7,47.093]
[1743711711194,1.11851,1789.0,1788.9,1.11847]
[1743711711895,2.54561,1789.0,1788.9,2.51847]
[1743711713782,2.54561,1789.0,1788.8,3.95688434]
[1743711713783,1.11854,1788.9,1788.8,4.33472434]
[1743711713986,2.54564,1788.9,1788.8,5.73472434]
[1743711716390,2.54564,1788.9,1788.8,4.33472434]
[1743711717598,2.54564,1788.9,1788.8,3.21618434]
[1743711718898,2.54564,1788.9,1788.8,0.00838434]
[1743711720390,1.11872,1788.6,1788.5,40.8]
[1743711720593,1.11898,1788.2,1788.1,3.2078]
[1743711720790,1.11898,1788.2,1788.1,6.9788]
[1743711720989,1.11898,1788.2,1788.1,47.7788]
[1743711721194,1.11898,1788.2,1788.1,44.571]
[1743711722691,1.49320445,1788.3,1788.2,1.11898]
[1743711722899,1.11898,1788.2,1788.1,45.69002]
[1743711723099,1.11898,1788.2,1788.1,44.571]
[1743711723592,1.87348,1788.2,1788.1,44.571]
[1743711725396,1.87348,1788.2,1788.1,40.8]
[1743711734295,0.7545,1788.2,1788.1,41.91904]
[1743711734502,2.61214445,1788.3,1788.2,1.11898]
[1743711734700,2.61214445,1788.3,1788.1,44.7456]
[1743711734701,1.11898,1788.2,1788.1,44.7456]
[1743711735005,2.51448,1788.2,1788.1,44.7456]
[1743711735205,2.51448,1788.2,1788.1,44.0078]
[1743711736504,2.51448,1788.2,1788.1,40.8]
[1743711740800,1.11904,1788.1,1788.0,0.00838434]
[1743711741001,4.01484,1788.1,1788.0,0.00838434]
[1743711741208,6.51484,1788.1,1788.0,0.00838434]
[1743711741707,4.01484,1788.1,1788.0,1.12748434]
[1743711741902,4.01484,1788.1,1788.0,0.00838434]
[1743711749507,4.01484,1788.1,1788.0,0.72588278]
[1743711754220,4.01484,1788.1,1788.0,2.22248278]
[1743711755016,4.01484,1788.1,1788.0,0.72588278]
[1743711755816,7.22264,1788.1,1788.0,0.72588278]
[1743711756119,4.01484,1788.1,1788.0,0.72588278]
[1743711756515,4.01484,1788.1,1788.0,0.00838434]
[1743711758424,4.01484,1788.1,1788.0,1.12748434]
[1743711758923,4.01484,1788.1,1788.0,1.68535698]
[1743711759122,4.01484,1788.1,1788.0,4.35569335]
[1743711760121,4.01484,1788.1,1788.0,2.73223948]
[1743711760319,4.01484,1788.1,1788.0,3.85133948]
[1743711760517,4.01484,1788.1,1788.0,2.73223948]
[1743711760821,0.00830445,1788.3,1788.0,2.73229669]
[1743711761023,0.00830445,1788.3,1788.2,1.11898]
[1743711761325,1.12726445,1788.3,1788.2,1.67690985]
[1743711761524,2.59246445,1788.3,1788.2,3.83919235]
[1743711762627,2.59246445,1788.3,1788.2,3.83884195]
[1743711762919,2.59246445,1788.3,1788.2,4.342931]
[1743711763125,2.59246445,1788.3,1788.2,3.83884195]
[1743711763324,2.59246445,1788.3,1788.2,4.34296279]
[1743711763524,2.59246445,1788.3,1788.2,3.83884195]
[1743711763727,2.59246445,1788.3,1788.2,4.342837]
[1743711763925,2.59246445,1788.3,1788.2,3.83884195]
[1743711764229,2.59246445,1788.3,1788.2,4.34281297]
[1743711764427,2.59246445,1788.3,1788.2,3.83884195]
[1743711764623,2.59246445,1788.3,1788.2,3.83858739]
[1743711764826,2.59246445,1788.3,1788.2,2.71960739]
[1743711765027,2.59246445,1788.3,1788.2,3.83858739]
[1743711765623,2.59246445,1788.3,1788.2,11.31816181]
[1743711765930,1.12721445,1788.3,1788.2,12.01186181]
[1743711766629,1.12721445,1788.3,1788.2,12.01127543]
[1743711768321,1.12721445,1788.3,1788.2,10.9507625]
[1743711768530,1.12721445,1788.3,1788.2,12.01091131]
[1743711768531,0.00830445,1788.3,1788.2,12.01091131]
[1743711770144,1.12721445,1788.3,1788.2,12.01091131]
[1743711770345,1.12721445,1788.3,1788.2,12.00983986]
[1743711770646,1.12721445,1788.3,1788.2,8.24978314]
[1743711770844,1.12721445,1788.3,1788.2,8.8125625]
[1743711771143,1.12721445,1788.3,1788.2,9.36856427]
[1743711771341,3.33941445,1788.3,1788.2,9.36856427]
[1743711772140,3.33941445,1788.3,1788.2,8.8125625]
[1743711772343,3.33941445,1788.3,1788.2,9.36837856]
[1743711772541,3.33941445,1788.3,1788.2,3.9255825]
[1743711773544,3.33941445,1788.3,1788.2,3.2078]
[1743711775546,3.33941445,1788.3,1788.2,3.92332435]
[1743711778443,3.33941445,1788.3,1788.2,5.04230435]
[1743711778643,3.33941445,1788.3,1788.2,3.92332435]
[1743711779949,3.33941445,1788.3,1788.2,3.92332431]
[1743711780248,3.33941445,1788.3,1788.2,5.04230431]
[1743711780454,3.33941445,1788.3,1788.2,3.92332431]
[1743711781451,3.33941445,1788.3,1788.2,5.04230431]
[1743711781452,0.00830445,1788.3,1788.2,5.04230431]
[1743711781747,2.79668,1788.7,1788.2,5.04230431]
[1743711781748,4.07859,1788.7,1788.6,1.11872]
[1743711782342,4.07859,1788.7,1788.6,41.91872]
[1743711784353,3.2078,1789.0,1788.6,41.35583214]
[1743711784557,1.5043,1788.9,1788.8,1.1186]
[1743711784755,2.62284,1788.9,1788.8,3.33221844]
[1743711786853,2.62284,1788.9,1788.8,2.21361844]
[1743711787053,2.62284,1788.9,1788.8,3.33221844]
[1743711787355,1.1186,1788.8,1788.7,4.32643]
[1743711787560,2.6016,1788.8,1788.7,4.88363]
[1743711788057,2.6016,1788.8,1788.7,5.59838086]
[1743711788852,2.6016,1788.8,1788.7,8.80618086]
[1743711789052,2.6016,1788.8,1788.7,9.36168926]
[1743711789258,2.6016,1788.8,1788.7,8.80618086]
[1743711789455,2.6016,1788.8,1788.7,5.59838086]
[1743711789659,2.6016,1788.8,1788.7,9.36149909]
[1743711789859,2.6016,1788.8,1788.7,8.80618086]
[1743711790051,2.6016,1788.8,1788.7,9.36145891]
[1743711790252,2.6016,1788.8,1788.7,9.36143716]
[1743711790453,2.6016,1788.8,1788.7,9.36141911]
[1743711790757,2.6016,1788.8,1788.7,8.80618086]
[1743711790954,1.483,1788.8,1788.7,8.80618086]
[1743711791154,2.57411,1789.0,1788.9,1.11854]
[1743711791354,4.03981,1789.0,1788.9,1.11854]
[1743711792568,4.03981,1789.0,1788.9,5.0402122]
[1743711792856,2.1826,1789.0,1788.9,5.0402122]
[1743711793246,3.30107,1789.0,1788.9,5.0402122]
[1743711794748,2.58417,1789.0,1788.9,4.32634]
[1743711795756,1.11833,1789.3,1788.9,5.7078]
[1743711795958,1.11833,1789.3,1789.2,4.32608]
[1743711796355,1.11833,1789.3,1789.2,45.12608]
[1743711798966,1.11833,1789.3,1789.2,44.0078]
[1743711799157,1.11833,1789.3,1789.2,45.12615]
[1743711799962,1.11833,1789.3,1789.2,44.0078]
[1743711800362,1.11833,1789.3,1789.2,3.2078]
[1743711802164,1.11833,1789.3,1789.2,4.32615]
[1743711804867,1.11833,1789.3,1789.2,3.2078]
[1743711805462,1.11833,1789.3,1789.2,4.32615]
[1743711805862,1.11833,1789.3,1789.2,3.2078]
[1743711806571,1.11833,1789.3,1789.2,4.32615]
[1743711807670,1.11833,1789.3,1789.2,3.2078]
[1743711810171,1.11847,1789.0,1788.9,3.21618434]
[1743711810673,1.11847,1789.0,1788.9,44.01618434]
[1743711810869,2.57156,1789.1,1789.0,1.11847]
[1743711811274,2.57156,1789.1,1789.0,1.4037]
[1743711811471,2.57156,1789.1,1789.0,2.52217]
[1743711811670,2.57156,1789.1,1789.0,3.23568834]
[1743711812575,2.57156,1789.1,1789.0,2.11721834]
[1743711813467,2.57156,1789.1,1789.0,3.23568834]
[1743711814467,2.57156,1789.1,1789.0,2.11721834]
[1743711814867,2.64655,1789.2,1789.1,1.11841]
[1743711815068,2.64655,1789.2,1789.1,5.77111]
[1743711815263,2.64655,1789.2,1789.1,6.32571577]
[1743711815468,2.64655,1789.2,1789.1,7.03923411]
[1743711816765,1.11832,1789.3,1789.2,1.11835]
[1743711816965,1.11832,1789.3,1789.2,6.90705317]
[1743711817165,2.51462,1789.3,1789.2,7.62057151]
[1743711817571,2.51462,1789.3,1789.2,7.6206194]
[1743711818375,2.51462,1789.3,1789.2,6.5022694]
[1743711818575,2.51462,1789.3,1789.2,7.6206194]
[1743711820667,2.51462,1789.3,1789.2,5.0292694]
[1743711820873,2.51462,1789.3,1789.2,0.71351834]
[1743711821273,1.11841,1789.1,1789.0,3.761]
[1743711821475,1.11841,1789.1,1789.0,5.43491205]
[1743711821672,1.11841,1789.1,1789.0,0.55544205]
[1743711821973,2.55391,1789.1,1789.0,0.7145712]
[1743711822167,1.11847,1789.0,1788.9,0.00838434]
[1743711822373,2.56477,1789.0,1788.9,0.00838434]
[1743711823481,2.56477,1789.0,1788.9,0.72339719]
[1743711823976,6.00349,1789.4,1788.9,0.72339719]
[1743711824178,1.4463,1789.3,1789.2,4.32615]